bitfinex/quotes_SOLUSD_20260221
["timestamp","ask_amount","ask_price","bid_price","bid_amount"]
[1771637387557,12.28521243,84.623,84.601,0.47507353]
[1771637388559,0.46809416,84.622,84.601,0.47507353]
[1771637388768,0.46809416,84.622,84.595,0.47507353]
[1771637389143,4.29631027,84.62,84.596,12.2959634]
[1771637389344,4.29631027,84.62,84.597,0.47507353]
[1771637389345,0.46809416,84.619,84.597,0.47507353]
[1771637389538,0.46809416,84.619,84.572,5.36086188]
[1771637389539,0.46809416,84.617,84.583,0.47507353]
[1771637390559,0.46809416,84.615,84.584,0.47507353]
[1771637392963,11.8183752,84.614,84.591,0.47507353]
[1771637393155,0.46809416,84.613,84.591,0.47507353]
[1771637395052,0.46809416,84.611,84.591,0.47507353]
[1771637398766,0.46809416,84.609,84.581,0.47507353]
[1771637398964,0.28432314,84.604,84.564,0.47507353]
[1771637399162,0.28432314,84.604,84.563,41.38926006]
[1771637399163,0.46809416,84.599,84.571,0.47507353]
[1771637400354,0.46809416,84.598,84.573,0.47507353]
[1771637401075,0.46809416,84.598,84.581,0.47507353]
[1771637401374,0.46809416,84.605,84.581,0.47507353]
[1771637405156,0.46809416,84.605,84.582,0.47507353]
[1771637409265,0.46809416,84.605,84.584,0.47029636]
[1771637409972,11.81960369,84.606,84.584,0.47029636]
[1771637410173,12.28252005,84.606,84.584,0.47029636]
[1771637410380,0.46291636,84.605,84.584,0.47029636]
[1771637417382,0.46291636,84.605,84.585,11.82242714]
[1771637417569,0.46291636,84.605,84.586,0.47029636]
[1771637419186,0.46291636,84.603,84.586,0.47029636]
[1771637421790,0.46291636,84.609,84.586,0.47029636]
[1771637428512,0.46291636,84.607,84.586,0.47029636]
[1771637429797,0.46291636,84.607,84.587,0.47029636]
[1771637431791,11.81921331,84.608,84.587,0.47029636]
[1771637432591,12.28212967,84.608,84.587,0.47029636]
[1771637432793,0.46291636,84.607,84.587,0.47029636]
[1771637434696,12.28240213,84.607,84.587,0.47029636]
[1771637434897,0.46291636,84.606,84.587,0.47029636]
[1771637447017,0.48337265,84.622,84.6,4.29803084]
[1771637447218,11.81690792,84.625,84.601,0.48740838]
[1771637447399,12.30028057,84.625,84.601,0.48740838]
[1771637448610,0.48337265,84.624,84.601,0.48740838]
[1771637449522,11.81488439,84.639,84.601,0.48740838]
[1771637449696,11.81488439,84.639,84.611,0.48740838]
[1771637449896,0.48337265,84.638,84.621,0.48740838]
[1771637450093,0.48337265,84.629,84.594,11.82104993]
[1771637450296,0.48337265,84.619,84.585,11.82233545]
[1771637450597,0.48337265,84.609,84.581,11.82298624]
[1771637452021,0.48337265,84.609,84.582,0.48740838]
[1771637453315,0.48337265,84.609,84.584,0.48740838]
[1771637455523,0.48337265,84.609,84.586,0.48740838]
[1771637458619,0.48337265,84.609,84.587,11.82214761]
[1771637458828,0.48337265,84.609,84.588,0.48740838]
[1771637462321,0.48337265,84.609,84.589,12.30927647]
[1771637462528,0.48337265,84.609,84.59,0.48740838]
[1771637477818,0.48337265,84.609,84.562,5.36086188]
[1771637477819,0.28432314,84.622,84.601,0.48264987]
[1771637478028,0.45217525,84.63,84.611,0.48264987]
[1771637479142,0.45217525,84.629,84.592,0.48264987]
[1771637480125,3.69383402,84.648,84.611,0.48264987]
[1771637480126,0.45217525,84.638,84.611,0.48264987]
[1771637481733,4.29803084,84.65,84.613,0.48264987]
[1771637481734,12.26682885,84.641,84.613,0.48264987]
[1771637481926,11.8146536,84.641,84.621,0.48264987]
[1771637482937,0.45217525,84.64,84.621,0.48264987]
[1771637485645,59.05537226,84.667,84.577,62.2]
[1771637485646,4.39803084,84.67,84.631,0.48264987]
[1771637485843,4.39803084,84.67,84.641,0.48264987]
[1771637486051,0.1,84.67,84.641,0.48264987]
[1771637486637,11.81097712,84.667,84.641,0.48264987]
[1771637487345,0.1,84.67,84.643,0.48264987]
[1771637487535,0.1,84.67,84.651,0.48264987]
[1771637488639,0.55217525,84.67,84.651,0.48264987]
[1771637489459,0.45217525,84.668,84.64,4.29803084]
[1771637490850,11.81069813,84.669,84.65,4.29803084]
[1771637491232,0.45217525,84.668,84.65,4.29803084]
[1771637491553,0.45217525,84.668,84.651,0.48264987]
[1771637491927,0.45217525,84.666,84.651,0.48264987]
[1771637498059,0.55970037,84.67,84.651,0.48264987]
[1771637498249,0.1,84.68,84.661,0.46552538]
[1771637498757,0.55970037,84.69,84.662,0.46552538]
[1771637498758,11.80822297,84.687,84.662,0.46552538]
[1771637499960,12.26792334,84.687,84.662,0.46552538]
[1771637500859,12.26792334,84.687,84.671,0.46552538]
[1771637505468,0.45970037,84.687,84.671,0.46552538]
[1771637505672,0.55970037,84.69,84.671,0.46552538]
[1771637506571,0.45970037,84.689,84.671,0.46552538]
[1771637508169,0.45970037,84.687,84.671,0.46552538]
[1771637509871,0.45970037,84.687,84.663,0.46552538]
[1771637510071,0.45970037,84.679,84.645,0.46552538]
[1771637510374,0.45970037,84.669,84.645,0.46552538]
[1771637511248,0.45970037,84.668,84.647,0.46552538]
[1771637513363,0.1,84.69,84.638,11.81490179]
[1771637513364,0.45970037,84.666,84.638,11.81490179]
[1771637513658,0.45970037,84.666,84.64,4.28939469]
[1771637514373,0.45970037,84.666,84.638,11.81490179]
[1771637514573,0.45970037,84.664,84.631,11.81600122]
[1771637515362,0.45970037,84.664,84.632,0.38404875]
[1771637516578,0.45970037,84.662,84.64,4.28939469]
[1771637517077,0.45970037,84.662,84.64,4.67344344]
[1771637518369,0.45970037,84.662,84.64,0.38404875]
[1771637520661,0.45970037,84.662,84.64,4.28939469]
[1771637520860,0.45970037,84.662,84.641,0.38404875]
[1771637521967,0.45970037,84.66,84.641,0.38404875]
[1771637532284,0.45970037,84.66,84.611,62.2]
[1771637532285,0.4835467,84.658,84.616,0.38404875]
[1771637532491,4.28939469,84.65,84.621,0.38404875]
[1771637532791,0.4835467,84.649,84.621,0.38404875]
[1771637534971,0.4835467,84.647,84.622,11.81725792]
[1771637535173,0.4835467,84.647,84.623,0.38404875]
[1771637535571,0.28432314,84.679,84.641,0.49226908]
[1771637535766,29.80785255,84.679,84.641,0.49226908]
[1771637535985,29.52352941,84.679,84.641,0.49226908]
[1771637536579,41.32914531,84.686,84.651,0.49226908]
[1771637537087,41.32914531,84.686,84.653,0.49226908]
[1771637537590,0.4835467,84.685,84.653,0.49226908]
[1771637538089,0.4835467,84.679,84.653,0.49226908]
[1771637539694,11.80944283,84.678,84.653,0.49226908]
[1771637539893,0.4835467,84.677,84.653,0.49226908]
[1771637542372,0.4835467,84.677,84.655,0.49226908]
[1771637545289,0.4835467,84.677,84.657,0.49226908]
[1771637547102,0.4835467,84.677,84.659,0.49226908]
[1771637553410,0.4835467,84.677,84.661,0.49226908]
[1771637553588,0.4835467,84.683,84.661,0.49226908]
[1771637557005,0.4835467,84.681,84.661,0.49226908]
[1771637562218,0.45997288,84.686,84.663,0.47443478]
[1771637563516,11.80846667,84.685,84.663,0.47443478]
[1771637563698,12.26843955,84.685,84.663,0.47443478]
[1771637564495,0.45997288,84.684,84.663,0.47443478]
[1771637567318,0.45997288,84.682,84.663,0.47443478]
[1771637572926,11.80902445,84.681,84.663,0.47443478]
[1771637573116,0.45997288,84.68,84.663,0.47443478]
[1771637577229,11.80902445,84.681,84.663,0.47443478]
[1771637578643,0.45997288,84.681,84.663,0.47443478]
[1771637583233,0.45997288,84.681,84.66,11.8119015]
[1771637583234,0.45997288,84.669,84.632,0.47443478]
[1771637583411,0.45997288,84.669,84.63,4.29000253]
[1771637583412,0.45997288,84.667,84.634,0.47443478]
[1771637584352,0.45997288,84.659,84.634,0.47443478]
[1771637587436,11.81223274,84.658,84.634,0.47443478]
[1771637587733,0.49784016,84.657,84.635,12.2988361]
[1771637587921,0.49784016,84.657,84.636,0.48339332]
[1771637588122,11.81111335,84.667,84.641,0.48339332]
[1771637589126,11.80980531,84.676,84.651,0.48339332]
[1771637589751,4.29000253,84.68,84.653,0.48339332]
[1771637590240,0.49784016,84.679,84.653,0.48339332]
[1771637590419,29.80456266,84.688,84.63,4.29000253]
[1771637590420,0.49784016,84.669,84.63,4.29000253]
[1771637591327,0.49784016,84.659,84.62,4.29000253]
[1771637592329,0.49784016,84.657,84.623,0.48339332]
[1771637594134,0.49784016,84.655,84.625,0.48339332]
[1771637594322,0.49784016,84.655,84.631,0.48339332]
[1771637596239,0.49784016,84.655,84.632,12.29925493]
[1771637596437,0.49784016,84.655,84.633,0.48339332]
[1771637600931,0.49784016,84.655,84.635,0.48339332]
[1771637601131,0.49784016,84.667,84.635,0.48339332]
[1771637604250,0.49784016,84.665,84.655,0.063943]
[1771637605046,0.49784016,84.674,84.656,0.48339332]
[1771637605353,11.81042628,84.671,84.656,0.48339332]
[1771637606638,0.49784016,84.669,84.63,4.29000253]
[1771637608675,0.49784016,84.667,84.633,0.36543735]
[1771637612662,0.49784016,84.667,84.635,0.36543735]
[1771637617963,0.49784016,84.667,84.637,0.36543735]
[1771637620348,0.48045099,84.665,84.639,0.36543735]
[1771637624663,0.48045099,84.665,84.63,33.8301898]
[1771637624664,0.48045099,84.665,84.641,0.36543735]
[1771637625650,0.48045099,84.665,84.643,0.36543735]
[1771637627850,0.48045099,84.665,84.645,0.36543735]
[1771637632775,11.81139563,84.664,84.645,0.36543735]
[1771637632978,0.48045099,84.663,84.631,0.36543735]
[1771637633479,0.48045099,84.663,84.632,0.36543735]
[1771637638085,0.48045099,84.663,84.634,0.36543735]
[1771637639488,0.48045099,84.661,84.634,0.36543735]
[1771637642985,0.48045099,84.661,84.63,4.29215294]
[1771637642986,0.48045099,84.659,84.63,0.36543735]
[1771637643287,0.48045099,84.659,84.62,4.29215294]
[1771637643288,0.48045099,84.649,84.623,11.81711827]
[1771637644189,0.48045099,84.648,84.623,12.18255562]
[1771637645283,0.48045099,84.646,84.623,12.18255562]
[1771637647195,0.48045099,84.646,84.624,0.36543735]
[1771637647396,0.48045099,84.646,84.626,0.36543735]
[1771637652290,11.81209322,84.659,84.626,0.36543735]
[1771637652499,0.4886332,84.676,84.641,0.36543735]
[1771637654794,0.4886332,84.669,84.631,0.36543735]
[1771637655190,0.4886332,84.659,84.631,0.36543735]
[1771637656609,0.4886332,84.659,84.621,0.36543735]
[1771637656792,0.4886332,84.657,84.623,0.36543735]
[1771637657897,0.4886332,84.655,84.625,0.36543735]
[1771637660191,4.29215294,84.66,84.625,0.36543735]
[1771637660192,0.4886332,84.653,84.625,0.36543735]
[1771637663583,0.4886332,84.651,84.631,0.36543735]
[1771637664586,0.4886332,84.651,84.633,0.36543735]
[1771637665086,0.4886332,84.655,84.633,0.36543735]
[1771637667399,0.4886332,84.664,84.635,0.36543735]
[1771637667707,11.81080498,84.669,84.641,0.36543735]
[1771637667881,12.29943818,84.669,84.641,0.36543735]
[1771637668302,0.4886332,84.668,84.641,0.36543735]
[1771637670004,0.4886332,84.668,84.643,0.36543735]
[1771637671100,0.4886332,84.666,84.643,0.36543735]
[1771637672093,0.4886332,84.664,84.644,12.17962382]
[1771637672294,0.4886332,84.659,84.626,11.81664598]
[1771637672612,0.4886332,84.649,84.626,12.18208333]
[1771637672810,0.4886332,84.649,84.627,0.36543735]
[1771637674323,0.4886332,84.649,84.626,11.81664598]
[1771637675291,0.4886332,84.647,84.626,11.81664598]
[1771637679023,0.4886332,84.647,84.626,0.36543735]
[1771637681239,0.4886332,84.647,84.626,12.18203455]
[1771637681524,0.4886332,84.647,84.627,0.36543735]
[1771637689607,59.04707583,84.679,84.6,4.29215294]
[1771637689608,0.48016713,84.645,84.618,0.36543735]
[1771637689820,0.48016713,84.645,84.607,0.36543735]
[1771637691711,0.48016713,84.643,84.611,0.36543735]
[1771637696130,0.48016713,84.641,84.613,0.36543735]
[1771637698633,11.8147448,84.64,84.614,11.8183752]
[1771637698935,0.48016713,84.639,84.615,0.36543735]
[1771637701135,0.48016713,84.639,84.617,0.36543735]
[1771637703525,0.48016713,84.66,84.621,0.36543735]
[1771637703723,0.48016713,84.656,84.631,0.36543735]
[1771637704818,11.81209322,84.659,84.631,0.36543735]
[1771637705015,0.48016713,84.658,84.631,0.36543735]
[1771637707638,0.48127513,84.656,84.633,0.36543735]
[1771637708931,0.48127513,84.654,84.633,0.36543735]
[1771637712237,11.81293043,84.653,84.633,0.36543735]
[1771637712423,0.48127513,84.652,84.633,0.36543735]
[1771637715336,0.48127513,84.652,84.634,11.81558239]
[1771637715549,0.48127513,84.652,84.635,0.36543735]
[1771637722041,0.48127513,84.652,84.633,11.81565545]
[1771637722042,11.81069813,84.669,84.636,11.81530318]
[1771637722241,11.80790893,84.689,84.651,0.47130317]
[1771637722460,29.52052301,84.687,84.651,0.47130317]
[1771637724157,0.48127513,84.684,84.652,0.47130317]
[1771637725454,0.48127513,84.682,84.652,0.47130317]
[1771637726359,0.48127513,84.682,84.654,0.47130317]
[1771637728961,0.48127513,84.682,84.656,0.47130317]
[1771637731276,0.48127513,84.682,84.658,0.47130317]
[1771637733360,0.48127513,84.689,84.661,0.47130317]
[1771637736750,0.48127513,84.689,84.663,0.47130317]
[1771637738248,0.1,84.69,84.663,0.47130317]
[1771637738455,0.1,84.69,84.671,0.49264699]
[1771637740651,0.1,84.69,84.672,0.49264699]
[1771637743753,0.1,84.69,84.674,0.49264699]
[1771637745378,0.1,84.71,84.691,0.49264699]
[1771637745880,0.1,84.71,84.692,0.49264699]
[1771637746177,0.1,84.72,84.692,0.49264699]
[1771637746357,0.59661325,84.72,84.692,0.49264699]
[1771637747472,0.59661325,84.72,84.701,0.49264699]
[1771637747677,0.1,84.72,84.701,0.49264699]
[1771637748057,11.80372761,84.719,84.701,0.49264699]
[1771637749372,0.1,84.72,84.701,0.49264699]
[1771637749960,0.59661325,84.72,84.694,0.49264699]
[1771637750161,4.39513831,84.72,84.694,0.49264699]
[1771637750482,0.49661325,84.719,84.69,4.7877853]
[1771637750979,0.49661325,84.719,84.691,0.49264699]
[1771637751291,11.80386694,84.718,84.691,0.49264699]
[1771637751476,0.49661325,84.717,84.68,4.29513831]
[1771637751681,0.49661325,84.709,84.674,62.2]
[1771637751865,0.49661325,84.709,84.671,11.81038388]
[1771637752561,41.3135343,84.718,84.663,0.49264699]
[1771637752562,0.49661325,84.699,84.663,0.49264699]
[1771637757468,0.49661325,84.697,84.663,0.49264699]
[1771637758591,0.49661325,84.695,84.67,4.28894162]
[1771637759182,0.49661325,84.695,84.668,0.49264699]
[1771637759566,4.28894162,84.68,84.621,5.36086188]
[1771637759886,0.49661325,84.679,84.624,3.69383402]
[1771637760089,0.49661325,84.679,84.621,5.36086188]
[1771637760578,0.49661325,84.677,84.621,5.36086188]
[1771637761565,0.49661325,84.677,84.642,0.15406549]
[1771637763480,0.49661325,84.675,84.642,0.15406549]
[1771637765982,0.49661325,84.675,84.65,4.28894162]
[1771637766313,12.30661395,84.674,84.651,0.15406549]
[1771637766475,0.49661325,84.673,84.651,0.15406549]
[1771637768288,11.81027966,84.672,84.651,0.15406549]
[1771637769074,12.27133324,84.672,84.651,0.15406549]
[1771637769274,0.46105358,84.671,84.651,0.15406549]
[1771637772795,0.46105358,84.67,84.651,0.15406549]
[1771637774896,0.46105358,84.67,84.65,4.28894162]
[1771637778304,4.28894162,84.71,84.661,0.48137809]
[1771637778505,4.28894162,84.71,84.671,0.48137809]
[1771637779302,11.80553915,84.706,84.671,0.48137809]
[1771637780303,0.46105358,84.703,84.671,0.48137809]
[1771637784703,0.46105358,84.701,84.671,0.48137809]
[1771637785610,0.46105358,84.699,84.671,0.48137809]
[1771637789708,11.80665423,84.698,84.671,0.48137809]
[1771637790015,0.46105358,84.697,84.671,0.48137809]
[1771637796594,0.46105358,84.695,84.671,0.48137809]
[1771637800320,4.28894162,84.7,84.672,0.48618276]
[1771637801505,11.80651483,84.699,84.672,0.48618276]
[1771637801701,41.31402196,84.717,84.672,0.48618276]
[1771637802022,4.28894162,84.7,84.672,0.48618276]
[1771637802322,0.45833322,84.699,84.672,0.48618276]
[1771637804804,0.45833322,84.719,84.674,0.48618276]
[1771637805009,0.45833322,84.719,84.681,0.48618276]
[1771637806030,0.45833322,84.716,84.681,0.48618276]
[1771637807005,0.45833322,84.709,84.681,0.48618276]
[1771637810329,0.45833322,84.707,84.681,0.48618276]
[1771637810522,0.45833322,84.699,84.667,11.81091138]
[1771637811115,0.45833322,84.699,84.66,4.28894162]
[1771637811952,0.45833322,84.699,84.66,4.28968153]
[1771637812612,0.45833322,84.697,84.661,0.48618276]
[1771637814332,0.45833322,84.695,84.661,0.48618276]
[1771637816428,0.45833322,84.693,84.661,0.48618276]
[1771637817742,0.45833322,84.689,84.651,0.48618276]
[1771637819120,4.28968153,84.69,84.651,0.48618276]
[1771637819121,0.45833322,84.687,84.661,0.48618276]
[1771637823343,0.45833322,84.685,84.661,0.48618276]
[1771637826837,0.45833322,84.683,84.652,0.48618276]
[1771637828855,0.4844383,84.681,84.652,0.48618276]
[1771637829642,0.4844383,84.679,84.652,0.48618276]
[1771637829939,12.2933233,84.682,84.652,0.48618276]
[1771637830116,11.808885,84.682,84.652,0.48618276]
[1771637830317,0.4844383,84.681,84.652,0.48618276]
[1771637831528,0.4844383,84.679,84.654,0.4612109]
[1771637832327,0.4844383,84.685,84.654,0.4612109]
[1771637832535,0.4844383,84.685,84.661,0.4612109]
[1771637833642,11.80860611,84.684,84.661,0.4612109]
[1771637834528,0.4844383,84.684,84.663,0.4612109]
[1771637838147,12.29313244,84.684,84.663,0.4612109]
[1771637842258,0.4844383,84.683,84.663,0.4612109]
[1771637845441,0.4844383,84.681,84.658,0.4612109]
[1771637847171,0.4844383,84.687,84.66,0.4612109]
[1771637847346,0.4844383,84.687,84.661,0.4612109]
[1771637847547,11.80790893,84.689,84.661,0.4612109]
[1771637848066,0.4844383,84.688,84.661,0.4612109]
[1771637849847,0.4844383,84.688,84.65,4.28968153]
[1771637850056,0.4844383,84.686,84.652,0.4612109]
[1771637856069,4.28968153,84.69,84.654,0.4612109]
[1771637856070,0.4844383,84.684,84.654,0.4612109]
[1771637857973,0.4844383,84.684,84.661,0.48350781]
[1771637858170,11.80874555,84.683,84.661,0.48350781]
[1771637858375,0.46628693,84.682,84.661,0.48350781]
[1771637858571,0.46628693,84.682,84.656,0.48350781]
[1771637860973,0.46628693,84.682,84.658,0.48350781]
[1771637864670,0.46628693,84.68,84.651,0.48350781]
[1771637867675,11.80930336,84.679,84.651,0.48350781]
[1771637867983,0.46628693,84.678,84.651,0.48350781]
[1771637868276,0.46628693,84.678,84.653,0.48350781]
[1771637868975,0.46628693,84.678,84.652,11.81306998]
[1771637869184,11.80958229,84.677,84.652,11.81306998]
[1771637869483,0.46628693,84.676,84.652,11.31306998]
[1771637869685,0.46628693,84.676,84.653,0.48350781]
[1771637873590,29.52129674,84.685,84.653,0.48350781]
[1771637875790,0.44644354,84.682,84.653,0.48350781]
[1771637878390,0.44644354,84.68,84.653,0.48350781]
[1771637879498,11.80930336,84.679,84.653,0.48350781]
[1771637879683,0.44644354,84.678,84.653,0.48350781]
[1771637881186,0.44644354,84.676,84.653,0.48350781]
[1771637885099,11.80651483,84.699,84.671,0.48350781]
[1771637885399,11.80651483,84.699,84.681,0.48350781]
[1771637887305,11.80599175,84.703,84.681,0.48350781]
[1771637888611,11.80599175,84.703,84.683,0.46901292]
[1771637892207,0.54644354,84.72,84.691,0.46901292]
[1771637892390,11.80372761,84.719,84.701,0.46901292]
[1771637892584,0.1,84.73,84.684,11.80860611]
[1771637892585,0.1,84.73,84.712,0.46901292]
[1771637892894,0.1,84.74,84.721,0.46901292]
[1771637893089,0.1,84.74,84.72,4.29081605]
[1771637893090,0.1,84.74,84.731,0.46901292]
[1771637893703,0.1,84.74,84.721,0.46901292]
[1771637897608,0.47113517,84.739,84.7,4.75982897]
[1771637897805,0.47113517,84.739,84.701,0.46901292]
[1771637897994,0.47113517,84.739,84.71,4.29081605]
[1771637898396,0.47113517,84.739,84.711,0.46901292]
[1771637898808,0.47113517,84.737,84.711,0.46901292]
[1771637901099,41.3047583,84.736,84.711,0.46901292]
[1771637901293,0.47113517,84.735,84.711,0.46901292]
[1771637903097,41.30573322,84.734,84.7,4.29081605]
[1771637903303,0.47113517,84.733,84.7,4.29081605]
[1771637904520,0.47113517,84.731,84.7,4.29081605]
[1771637905219,0.47113517,84.731,84.701,0.46901292]
[1771637905622,0.47113517,84.729,84.701,0.46901292]
[1771637909424,0.47113517,84.727,84.701,0.46901292]
[1771637911208,0.47113517,84.725,84.701,0.46901292]
[1771637914306,0.47113517,84.723,84.701,0.46901292]
[1771637917012,0.47113517,84.721,84.701,0.46901292]
[1771637919331,0.48129327,84.732,84.711,0.49313337]
[1771637919531,41.78800147,84.732,84.711,0.49313337]
[1771637919823,0.48129327,84.731,84.711,0.49313337]
[1771637921025,12.28348847,84.73,84.711,0.49313337]
[1771637923027,0.48129327,84.729,84.711,0.49313337]
[1771637926932,11.80247379,84.728,84.711,0.49313337]
[1771637930146,0.48129327,84.728,84.711,0.49313337]
[1771637931343,51.58883001,84.75,84.711,0.49313337]
[1771637931344,0.48129327,84.759,84.722,0.28454354]
[1771637931528,0.48129327,84.758,84.73,4.29081605]
[1771637931722,0.48129327,84.758,84.731,0.28454354]
[1771637932038,0.48129327,84.756,84.732,0.28454354]
[1771637933948,11.79871394,84.755,84.732,0.28454354]
[1771637934134,0.48129327,84.754,84.732,0.28454354]
[1771637936050,0.48129327,84.752,84.732,0.28454354]
[1771637939749,0.48129327,84.75,84.732,0.28454354]
[1771637942054,11.79954925,84.749,84.732,0.28454354]
[1771637949659,0.45097936,84.748,84.723,0.28454354]
[1771637949863,0.45097936,84.748,84.731,0.28454354]
[1771637952763,0.45097936,84.753,84.731,0.28454354]
[1771637955271,0.45097936,84.758,84.741,0.28454354]
[1771637955566,0.1,84.77,84.751,0.18454354]
[1771637955945,0.45097936,84.769,84.76,4.28262407]
[1771637956554,0.1,84.77,84.76,4.46716761]
[1771637958259,0.1,84.77,84.761,0.18454354]
[1771637966856,0.1,84.77,84.76,4.28262407]
[1771637970078,0.55097936,84.77,84.76,4.28262407]
[1771637970277,0.1,84.77,84.76,4.28262407]
[1771637970578,33.86733236,84.79,84.761,0.08454354]
[1771637970579,0.1,84.79,84.761,0.08454354]
[1771637970778,0.1,84.79,84.781,0.08454354]
[1771637971078,0.45772823,84.799,84.781,0.08454354]
[1771637971258,0.45772823,84.799,84.79,4.28262407]
[1771637971755,0.1,84.8,84.791,0.08454354]
[1771637973484,0.45772823,84.799,84.79,4.28262407]
[1771637973665,0.45772823,84.799,84.76,4.28262407]
[1771637973666,0.45772823,84.799,84.771,0.08454354]
[1771637974377,0.45772823,84.799,84.77,4.28262407]
[1771637974564,0.45772823,84.799,84.771,0.08454354]
[1771637974768,0.45772823,84.799,84.78,4.28262407]
[1771637976578,0.45772823,84.799,84.781,0.08454354]
[1771637976769,0.45772823,84.799,84.782,0.08454354]
[1771637977676,0.45772823,84.799,84.79,4.28262407]
[1771637978072,0.1,84.82,84.791,0.08454354]
[1771637978274,0.46150458,84.818,84.791,0.08454354]
[1771637978473,0.46150458,84.818,84.791,11.87824806]
[1771637979287,0.46150458,84.818,84.8,4.28262407]
[1771637979469,0.46150458,84.818,84.792,0.08454354]
[1771637979864,0.46150458,84.818,84.8,4.28262407]
[1771637981187,0.1,84.82,84.8,4.28262407]
[1771637981188,0.1,84.82,84.801,0.08454354]
[1771637981496,0.56150458,84.82,84.801,0.08454354]
[1771637981686,0.56150458,84.82,84.801,11.8768573]
[1771637982069,0.56150458,84.82,84.802,0.08454354]
[1771637983088,0.56150458,84.82,84.801,11.79231376]
[1771637984771,0.56150458,84.82,84.802,0.08454354]
[1771637985171,0.46150458,84.839,84.81,4.28262407]
[1771637985372,0.46150458,84.839,84.82,4.28262407]
[1771637985771,0.5,84.844,84.82,4.28262407]
[1771637985987,0.5,84.853,84.83,4.28262407]
[1771637987289,11.78434165,84.859,84.84,4.28262407]
[1771637988082,16.5743291,84.857,84.84,4.28262407]
[1771637989182,0.5,84.856,84.84,4.28262407]
[1771637990576,16.0743291,84.857,84.84,4.28262407]
[1771637991189,0.5,84.856,84.85,4.28262407]
[1771637991388,11.78008929,84.889,84.851,0.48547726]
[1771637991586,11.78008929,84.889,84.861,0.48547726]
[1771637993285,0.46150458,84.898,84.868,11.78289541]
[1771637993479,0.46150458,84.898,84.867,0.48547726]
[1771637993686,0.46150458,84.889,84.85,4.28262407]
[1771637994293,0.46150458,84.889,84.85,4.76810133]
[1771637994695,0.46150458,84.889,84.861,0.48547726]
[1771637995575,0.46150458,84.887,84.861,0.48547726]
[1771637996893,0.46150458,84.887,84.863,0.48547726]
[1771637997701,0.46150458,84.887,84.865,0.48547726]
[1771637998382,0.46150458,84.885,84.865,0.48547726]
[1771638000389,0.46150458,84.879,84.849,11.78560171]
[1771638000581,0.46150458,84.879,84.85,4.26927023]
[1771638000783,0.46150458,84.879,84.851,0.48547726]
[1771638001498,0.46150458,84.879,84.86,4.26927023]
[1771638002686,11.78078318,84.884,84.85,4.26927023]
[1771638002687,0.46150458,84.877,84.85,4.26927023]
[1771638003295,0.46150458,84.877,84.85,4.75474749]
[1771638003507,0.46150458,84.877,84.851,0.48547726]
[1771638003801,0.46150458,84.869,84.84,4.26927023]
[1771638003982,0.46150458,84.869,84.841,0.48547726]
[1771638004801,0.46150458,84.867,84.85,4.26927023]
[1771638004998,0.46150458,84.867,84.842,0.48547726]
[1771638006011,0.46150458,84.867,84.819,91.67427399]
[1771638006199,0.49273863,84.859,84.83,4.26927023]
[1771638006698,11.78439275,84.858,84.82,16.05894247]
[1771638006900,0.49273863,84.857,84.82,16.05894247]
[1771638009016,0.4945686,84.855,84.82,16.05894247]
[1771638010098,0.4945686,84.853,84.83,4.26927023]
[1771638010299,0.4945686,84.853,84.82,4.26927023]
[1771638011110,0.4945686,84.851,84.83,4.26927023]
[1771638013107,0.4945686,84.851,84.83,16.05742227]
[1771638013608,0.4945686,84.851,84.83,4.26927023]
[1771638013913,11.78550383,84.85,84.83,4.26927023]
[1771638014506,0.4945686,84.849,84.83,4.26927023]
[1771638021498,0.4945686,84.847,84.83,4.26927023]
[1771638026518,0.4945686,84.859,84.84,4.26927023]
[1771638030502,0.4945686,84.857,84.84,4.26927023]
[1771638030710,0.4945686,84.857,84.83,4.26927023]
[1771638033106,0.4945686,84.855,84.83,4.26927023]
[1771638033616,0.4945686,84.855,84.826,11.78874767]
[1771638036305,0.4945686,84.853,84.82,4.26927023]
[1771638039825,0.49273863,84.851,84.82,4.26927023]
[1771638040028,41.24829114,84.852,84.81,4.26927023]
[1771638040029,0.49273863,84.849,84.81,4.26927023]
[1771638040234,0.49273863,84.839,84.81,4.26927023]
[1771638041828,4.26927023,84.84,84.81,4.26927023]
[1771638041829,11.78717084,84.838,84.81,4.26927023]
[1771638042026,0.49273863,84.837,84.81,4.26927023]
[1771638045735,0.49273863,84.835,84.81,4.26927023]
[1771638045936,0.49273863,84.835,84.766,62.2]
[1771638046140,41.25607053,84.836,84.766,62.2]
[1771638046141,0.49273863,84.829,84.79,4.26927023]
[1771638047639,0.49273863,84.819,84.79,4.26927023]
[1771638047840,0.49273863,84.817,84.78,4.26927023]
[1771638049534,0.49273863,84.809,84.77,4.26927023]
[1771638050728,0.49273863,84.807,84.771,11.796487]
[1771638054843,0.49273863,84.805,84.78,4.26927023]
[1771638057627,0.49273863,84.805,84.781,11.79509559]
[1771638058330,0.49273863,84.814,84.79,4.27743303]
[1771638058731,0.49273863,84.826,84.8,4.27743303]
[1771638061834,0.49273863,84.824,84.801,11.79231376]
[1771638069531,0.49273863,84.824,84.791,11.79370452]
[1771638072443,12.28018735,84.836,84.8,4.27743303]